bitfinex/quotes_ETHUSD_20210401
["timestamp","ask_amount","ask_price","bid_price","bid_amount"]
[1617283980839,2.5850415,1935.6,1935.5,2.36506888]
[1617283981037,10.3382115,1935.6,1935.5,2.36506888]
[1617283981238,10.3382115,1935.6,1935.5,1.4531188]
[1617283981438,10.3382115,1935.6,1935.5,6.4631188]
[1617283981837,10.3382115,1935.6,1935.5,5.01]
[1617283982038,10.3382115,1935.6,1935.3,2.7623698]
[1617283982362,7.75317,1935.6,1935.3,3.0423698]
[1617283982766,7.75317,1935.6,1935.3,2.6423698]
[1617283983263,15.75317,1935.6,1935.2,2.75820618]
[1617283983461,0.4,1935.7,1935.2,2.75820618]
[1617283983661,2.1165693,1935.8,1935.2,3.15820618]
[1617283983861,2.1165693,1935.8,1935.4,2.76056246]
[1617283983862,1.1165693,1935.8,1935.4,2.76056246]
[1617283984064,1.1165693,1935.8,1935.4,0.694]
[1617283984366,15.5090667,1936.2,1935.7,16.15]
[1617283984561,15.5090667,1936.2,1935.8,2.65456246]
[1617283984761,15.5090667,1936.2,1935.9,0.39]
[1617283985185,15.5090667,1936.2,1935.8,11.3759]
[1617283985989,15.5090667,1936.2,1935.8,11.7659]
[1617283986188,7.75139,1936.1,1935.8,11.7659]
[1617283986389,7.82486749,1936.1,1935.8,11.7659]
[1617283986588,7.82486749,1936.1,1935.9,0.4]
[1617283986787,7.82486749,1936.1,1935.9,2.76056246]
[1617283987187,7.82486749,1936.1,1935.8,12.6021846]
[1617283987386,7.82486749,1936.1,1935.8,12.9921846]
[1617283987606,7.82486749,1936.1,1935.8,12.3081846]
[1617283988206,7.82486749,1936.1,1935.8,11.0819]
[1617283988407,7.82486749,1936.1,1935.9,0.4]
[1617283988807,6.82486749,1936.1,1936.0,0.58626805]
[1617283989008,6.82486749,1936.1,1935.8,11.0819]
[1617283989009,6.82486749,1936.1,1935.8,3.97]
[1617283989209,6.82486749,1936.1,1935.8,0.69]
[1617283989408,6.82486749,1936.1,1935.9,5.01]
[1617283989810,6.82486749,1936.1,1935.9,12.6294]
[1617283990234,7.75109,1936.3,1936.0,2.30901858]
[1617283990435,7.75109,1936.3,1936.0,2.65901858]
[1617283990436,15.75109,1936.3,1936.0,2.65901858]
[1617283991035,7.75109,1936.3,1936.0,2.65901858]
[1617283991236,12.92194,1936.6,1936.0,2.65901858]
[1617283991437,6.15025683,1936.7,1936.3,0.38]
[1617283991641,2.10647847,1936.7,1936.4,0.38]
[1617283991841,0.05973986,1936.5,1936.4,2.7302605]
[1617283992042,0.05973986,1936.5,1936.4,0.38]
[1617283992239,0.05973986,1936.5,1936.4,2.7302605]
[1617283993460,0.05973986,1936.5,1936.4,3.12]
[1617283993761,1.16621833,1936.7,1936.4,5.9990673]
[1617283993965,1.16621833,1936.7,1936.4,11.10313624]
[1617283994360,1.16621833,1936.7,1936.4,11.0090673]
[1617283994562,1.16621833,1936.7,1936.6,31.81]
[1617283994762,1.16621833,1936.7,1936.6,33.01]
[1617283994961,1.16621833,1936.7,1936.6,38.27]
[1617283995493,1.16621833,1936.7,1936.6,39.4962846]
[1617283996088,1.16621833,1936.7,1936.6,47.2431946]
[1617283996292,1.833e-05,1936.7,1936.6,80.67697905]
[1617283996788,1.833e-05,1936.7,1936.6,79.17539304]
[1617283997288,1.833e-05,1936.7,1936.6,86.17539304]
[1617283997692,0.04518714,1937.3,1936.7,27.9]
[1617283997898,0.04518714,1937.3,1937.2,0.38]
[1617283998310,0.04518714,1937.3,1937.2,6.53]
[1617283998712,15.23022714,1937.6,1937.2,6.15]
[1617283998940,5.23022714,1937.6,1937.3,0.4]
[1617283999953,5.23022714,1937.6,1937.2,6.26392246]
[1617284000751,5.23022714,1937.6,1937.3,0.39]
[1617284001154,5.23022714,1937.6,1937.2,0.11392246]
[1617284001653,5.23022714,1937.6,1937.2,0.49392246]
[1617284002554,5.23022714,1937.6,1937.2,0.77392246]
[1617284002753,5.23022714,1937.6,1937.3,0.4]
[1617284003054,5.23022714,1937.6,1937.4,2.36825676]
[1617284003255,8.01210054,1937.7,1937.5,0.4]
[1617284003456,0.01210054,1937.7,1937.5,0.4]
[1617284003855,1.61449914,1937.8,1937.4,0.8237]
[1617284004258,1.61449914,1937.8,1937.4,1.2037]
[1617284004455,1.61449914,1937.8,1937.4,0.8237]
[1617284004655,0.02,1937.8,1937.4,0.8237]
[1617284004857,0.02,1937.8,1937.4,1.2137]
[1617284005568,0.02,1937.8,1937.4,0.8237]
[1617284005758,0.02,1937.8,1937.4,1.2237]
[1617284006484,0.02,1937.8,1937.5,0.41]
[1617284006682,0.02,1937.8,1937.4,0.8237]
[1617284007383,0.02,1937.8,1937.4,1.2037]
[1617284007583,0.02,1937.8,1937.4,0.8237]
[1617284007984,0.02,1937.8,1937.4,1.2237]
[1617284009010,0.02,1937.8,1937.3,8.9206683]
[1617284009011,0.02,1937.9,1937.7,9.41572923]
[1617284009310,0.02,1937.9,1937.7,8.19202923]
[1617284011336,0.02,1937.9,1937.7,7.28080076]
[1617284011733,6.52538895,1938.0,1937.8,0.41]
[1617284012035,12.91151,1938.4,1937.9,0.39]
[1617284012237,8.5916098,1938.7,1938.3,0.41]
[1617284012238,4.04004951,1938.6,1938.3,0.41]
[1617284012434,1.0,1938.7,1938.3,8.0597]
[1617284012837,0.95,1938.7,1938.3,8.0597]
[1617284013033,0.95,1938.7,1938.3,7.7797]
[1617284013336,0.95,1938.7,1938.6,0.14909928]
[1617284013635,0.95,1938.7,1938.3,9.73098402]
[1617284013871,0.98879261,1938.9,1938.4,16.13]
[1617284014062,0.98879261,1938.9,1938.4,19.99]
[1617284014261,0.98879261,1938.9,1938.4,5.0862846]
[1617284014262,7.74244,1938.7,1938.4,5.0862846]
[1617284014563,2.73898334,1938.6,1938.4,1.2262846]
[1617284014963,2.35898334,1938.6,1938.4,1.2262846]
[1617284015462,7.74298,1938.5,1938.3,0.28]
[1617284015663,7.74298,1938.5,1938.0,0.49406894]
[1617284015962,7.74298,1938.5,1938.1,0.28]
[1617284017607,0.00725521,1938.6,1938.3,0.41]
[1617284017811,5.21e-06,1938.6,1938.5,30.63898334]
[1617284018007,5.21e-06,1938.6,1938.5,67.69898334]
[1617284018306,0.98879261,1938.9,1938.8,1.2]
[1617284018307,7.82e-06,1938.9,1938.8,1.2]
[1617284018514,0.01164172,1939.0,1938.8,3.55669416]
[1617284018709,0.01164172,1939.0,1938.9,23.9]
[1617284018912,0.01164172,1939.0,1938.9,23.03]
[1617284019313,2.00490792,1939.6,1939.0,15.25]
[1617284019613,2.00490792,1939.6,1939.1,0.09406894]
[1617284019614,17.74419792,1939.6,1939.1,0.09406894]
[1617284019812,16.74419792,1939.6,1939.0,16.87574993]
[1617284020212,9.74419792,1939.6,1939.1,1.93219844]
[1617284020414,9.74419792,1939.6,1939.2,0.4]
[1617284020815,9.74419792,1939.6,1939.1,1.93219844]
[1617284021416,10.00490792,1939.6,1939.1,1.93219844]
[1617284021615,2.76491514,1939.5,1939.1,1.92221268]
[1617284021844,7.74024,1939.3,1938.8,0.49406894]
[1617284022044,7.74024,1939.3,1938.9,0.364]
[1617284022345,0.41,1939.5,1938.9,0.364]
[1617284022543,2.00490792,1939.6,1938.9,0.45806894]
[1617284022744,2.00490792,1939.6,1939.2,0.4]
[1617284022948,2.39490792,1939.6,1939.1,1.2239]
[1617284023147,7.73951,1939.5,1939.3,0.16236859]
[1617284023343,10.09442514,1939.5,1939.3,0.16236859]
[1617284023843,7.73951,1939.5,1939.3,0.16236859]
[1617284024047,2.00490792,1939.6,1939.3,7.26336859]
[1617284024865,1.00490792,1939.6,1939.3,7.26336859]
[1617284025066,1.00490792,1939.6,1939.3,7.54336859]
[1617284025365,1.00490792,1939.6,1939.3,7.26336859]
[1617284025571,2.353145,1939.5,1939.3,7.26336859]
[1617284025766,2.353145,1939.5,1939.3,0.16236859]
[1617284025969,3.553145,1939.5,1938.8,1.22574993]
[1617284026168,5.6175328,1939.5,1938.8,1.22574993]
[1617284026470,5.6175328,1939.5,1938.4,0.09406894]
[1617284026471,0.4,1939.0,1938.4,0.09406894]
[1617284026773,0.4,1939.0,1938.4,0.28]
[1617284027188,2.763145,1938.9,1938.2,0.09406894]
[1617284027388,7.74245,1938.7,1938.2,0.09406894]
[1617284027587,7.74245,1938.7,1938.1,3.42796261]
[1617284027588,17.94985,1938.7,1938.1,2.20221268]
[1617284027789,2.353145,1938.6,1938.1,1.92221268]
[1617284027988,2.353145,1938.6,1938.1,2.32221268]
[1617284028189,2.353145,1938.6,1938.3,0.16178338]
[1617284028795,10.2074,1938.7,1938.3,2.49399606]
[1617284029000,10.2074,1938.7,1938.3,2.08399606]
[1617284029190,10.096235,1938.6,1937.9,0.09406894]
[1617284029394,15.19,1938.5,1938.0,0.4]
[1617284029609,14.8,1938.5,1937.9,0.28]
[1617284029809,13.8,1938.5,1937.9,0.68]
[1617284030009,12.8,1938.5,1937.9,0.68]
[1617284030221,3.41919775,1938.6,1938.0,0.38]
[1617284030409,3.41919775,1938.6,1938.1,0.42]
[1617284030708,3.41929174,1938.6,1938.1,0.42]
[1617284030908,1.1498,1938.6,1938.1,0.82]
[1617284031409,1.1498,1938.6,1938.0,0.28]
[1617284031609,2.2681433,1938.6,1938.0,0.28]
[1617284031809,0.41,1938.6,1938.0,0.37406894]
[1617284032014,2.67812871,1938.6,1937.9,0.67]
[1617284032254,7.74294,1938.6,1938.0,0.48406894]
[1617284032457,7.74294,1938.6,1938.0,0.39]
[1617284033056,10.01459496,1938.6,1938.2,0.17236389]
[1617284033259,0.41,1938.5,1938.2,0.17236389]
[1617284033458,5.6,1938.4,1938.2,0.02236389]
[1617284033657,0.41,1938.4,1938.2,0.02236389]
[1617284034056,2.26996691,1938.5,1938.2,0.02236389]
[1617284034260,0.4,1938.4,1937.8,8.18908283]
[1617284034457,0.4,1938.4,1938.0,0.364]
[1617284034661,1.227,1938.5,1938.0,0.364]
[1617284034869,0.607,1938.5,1938.0,0.364]
[1617284035165,0.607,1938.5,1937.8,0.06643283]
[1617284035366,0.4,1938.2,1937.8,0.06643283]
[1617284035565,0.4,1938.2,1937.7,1.22574993]
[1617284036065,0.4,1938.2,1937.6,0.34643283]
[1617284036366,9.0124,1938.3,1937.7,5.01]
[1617284036567,9.0124,1938.3,1937.9,0.39]
[1617284036768,9.0124,1938.3,1937.8,5.43]
[1617284037170,9.0124,1938.3,1937.8,0.42]
[1617284037990,9.4024,1938.3,1937.8,0.42]
[1617284038190,9.4024,1938.3,1938.0,0.16075839]
[1617284038892,8.9624,1938.3,1938.0,0.16075839]
[1617284039293,8.9624,1938.3,1938.0,0.44075839]
[1617284039494,7.75293,1938.4,1938.0,0.44075839]
[1617284039698,0.0088,1938.4,1938.0,0.44075839]
[1617284039900,7.77058611,1938.6,1938.3,0.41]
[1617284040114,7.74325,1938.6,1938.2,0.39]
[1617284040315,7.77058611,1938.6,1938.2,0.39]
[1617284040521,7.74325,1938.6,1938.0,0.44075839]
[1617284040715,10.0,1938.5,1938.0,0.44075839]
[1617284040917,10.0,1938.5,1938.0,0.16075839]
[1617284041121,10.4,1938.5,1938.0,0.16075839]
[1617284041422,17.02733611,1938.4,1937.6,3.66266166]
[1617284041619,17.02733611,1938.4,1937.7,0.28]
[1617284041620,0.4,1938.3,1937.7,0.28]
[1617284041919,6.2347,1938.3,1937.7,0.28]
[1617284042119,0.02733611,1938.2,1937.7,0.28]
[1617284042328,0.42733611,1938.2,1937.7,0.28]
[1617284042851,0.4,1938.2,1937.7,0.28]
[1617284043055,0.4,1938.2,1937.7,0.47563743]
[1617284043454,0.39,1938.1,1937.7,0.19563743]
[1617284043654,7.74605,1938.0,1937.7,0.19563743]
[1617284044678,8.14605,1938.0,1937.7,0.19563743]
[1617284044879,7.14605,1938.0,1937.7,0.19563743]
[1617284045275,2.36833262,1937.9,1937.7,0.19563743]
[1617284045488,12.09643262,1937.9,1937.7,0.19563743]
[1617284045894,19.84264262,1937.9,1937.7,0.19563743]
[1617284046089,19.75,1937.8,1937.7,0.19563743]
[1617284046495,2.36833262,1937.7,1937.2,0.41]
[1617284046691,2.36833262,1937.7,1937.2,0.844]
[1617284047393,0.38,1937.8,1937.2,0.434]
[1617284047593,0.02733611,1937.8,1937.3,0.38]
[1617284047790,11.73376873,1937.9,1937.3,0.38]
[1617284047993,11.73376873,1937.9,1937.2,0.434]
[1617284048190,11.73376873,1937.9,1937.2,0.63829651]
[1617284048390,12.14376873,1937.9,1937.2,0.61429651]
[1617284048594,12.14376873,1937.9,1937.2,0.20429651]
[1617284048595,2.39566873,1937.7,1937.2,0.20429651]
[1617284048890,2.36833262,1937.7,1937.2,0.20429651]
[1617284049491,0.41733611,1937.8,1937.2,0.20429651]
[1617284049691,0.41733611,1937.8,1937.3,0.737]
[1617284049692,0.02733611,1937.8,1937.3,0.737]
[1617284049897,2.36833262,1938.1,1937.5,0.4]
[1617284050093,2.36833262,1938.1,1937.3,0.357]
[1617284050292,0.439,1938.0,1937.3,0.41]
[1617284050492,0.049,1938.0,1937.3,0.41]
[1617284050715,0.449,1938.0,1937.3,0.41]
[1617284050915,0.049,1938.0,1937.4,0.4]
[1617284051222,21.12182311,1938.4,1937.7,0.4]
[1617284051418,0.049,1938.4,1937.8,0.4]
[1617284051627,0.049,1938.4,1937.8,0.792]
[1617284052116,7.74425,1938.4,1937.9,0.38]
[1617284052520,7.74425,1938.4,1937.6,1.2]
[1617284052716,7.74425,1938.4,1937.8,0.39]
[1617284053117,7.74425,1938.4,1937.9,0.17906875]
[1617284053341,7.74425,1938.4,1938.0,0.39]
[1617284053541,9.999,1938.5,1938.1,0.38]
[1617284053742,9.999,1938.5,1938.0,0.684]
[1617284053743,9.999,1938.5,1938.3,0.41]
[1617284054342,9.999,1938.5,1938.0,1.494]
[1617284054343,9.999,1938.5,1938.0,0.294]
[1617284054541,9.999,1938.5,1938.0,0.694]
[1617284054842,8.999,1938.5,1938.2,0.41]
[1617284055151,8.999,1938.5,1938.2,7.37439634]
[1617284055350,8.999,1938.5,1938.0,3.03839634]
[1617284055542,8.999,1938.5,1937.9,0.09406894]
[1617284055742,8.999,1938.5,1937.9,18.94846528]
[1617284055970,8.999,1938.5,1938.2,8.341]
[1617284056272,8.999,1938.5,1938.2,16.08259]
[1617284056470,8.999,1938.5,1938.2,20.28833993]
[1617284057171,8.999,1938.5,1938.2,12.54674993]
[1617284057470,8.999,1938.5,1938.2,13.74674993]
[1617284057679,8.999,1938.5,1938.4,12.61]
[1617284057972,9.06395344,1938.5,1938.4,12.61]
[1617284058171,9.06395344,1938.5,1938.4,1.81301667]
[1617284058373,9.06395344,1938.5,1938.4,4.17741301]
[1617284058592,9.06395344,1938.5,1938.4,19.23741301]
[1617284058792,9.06395344,1938.5,1938.4,23.91741301]
[1617284059701,9.06395344,1938.5,1938.4,23.94316294]
[1617284059896,8.06395344,1938.5,1938.4,23.94316294]
[1617284060703,8.06395344,1938.5,1938.4,25.14316294]
[1617284061139,8.06395344,1938.5,1938.4,13.89316294]
[1617284061338,8.06395344,1938.5,1938.4,0.61301667]
[1617284061538,8.06395344,1938.5,1938.4,0.20301667]
[1617284061740,8.06395344,1938.5,1938.4,1.78301667]
[1617284061942,7.96395344,1938.5,1938.4,10.63301667]
[1617284062141,7.96395344,1938.5,1938.4,1.78301667]
[1617284062341,7.96395344,1938.5,1938.4,2.94301667]
[1617284062542,7.96395344,1938.5,1938.4,0.20301667]
[1617284062945,7.96395344,1938.5,1938.4,0.60301667]
[1617284063141,8.02362736,1938.5,1938.4,8.34398667]
[1617284063455,8.02362736,1938.5,1938.4,14.55398667]
[1617284064142,7.74114,1939.1,1938.5,5.55]
[1617284064342,7.74114,1939.1,1938.6,0.41]
[1617284064848,6.74114,1939.1,1938.6,0.41]
[1617284065343,6.74114,1939.1,1938.7,0.41]
[1617284065547,6.74114,1939.1,1938.4,0.20301667]
[1617284067068,7.94114,1939.1,1938.4,0.20301667]
[1617284067268,15.94114,1939.1,1938.4,0.20301667]
[1617284067468,8.0,1939.1,1938.4,0.20301667]
[1617284067668,11.87165,1939.1,1938.4,0.20301667]
[1617284068072,7.75,1939.1,1938.4,0.20301667]
[1617284068368,10.3242,1939.2,1938.4,0.20301667]
[1617284068573,11.5242,1939.2,1938.4,0.20301667]
[1617284068991,16.5242,1939.2,1938.4,0.20301667]
[1617284069189,24.5242,1939.2,1938.4,0.20301667]
[1617284069791,24.5242,1939.2,1938.4,0.60301667]
[1617284070090,23.3242,1939.2,1938.4,0.60301667]
[1617284070491,23.3242,1939.2,1938.4,0.20301667]
[1617284070994,7.924,1939.2,1938.9,0.39]
[1617284071196,6.09761095,1939.4,1938.5,0.364]
[1617284071504,5.0,1939.3,1938.7,0.336]
[1617284071722,6.09761095,1939.4,1938.8,0.41]
[1617284071919,6.09761095,1939.4,1938.5,0.364]
[1617284072220,5.01,1939.2,1938.8,0.1422021]
[1617284072421,11.10761095,1939.4,1938.8,0.1422021]
[1617284072832,18.84876095,1939.4,1938.8,0.1422021]
[1617284073422,13.83876095,1939.4,1938.8,0.1422021]
[1617284073822,12.83876095,1939.4,1938.8,0.1422021]
[1617284074548,20.91489806,1939.4,1938.8,0.1422021]
[1617284074742,21.18413959,1939.4,1938.8,0.1422021]
[1617284075344,21.18413959,1939.4,1938.8,0.5322021]
[1617284075545,21.13413959,1939.4,1938.8,0.1422021]
[1617284076745,22.56929874,1939.4,1938.8,0.1422021]
[1617284076990,30.56929874,1939.4,1938.8,0.1422021]
[1617284077192,22.82814874,1939.4,1938.8,0.1422021]
[1617284077690,14.82814874,1939.4,1938.8,0.1422021]
[1617284077890,7.74303,1939.1,1938.8,0.1422021]
[1617284078090,7.74303,1939.1,1938.3,5.01]
[1617284078394,7.74303,1939.1,1938.5,0.4]
[1617284078897,6.74303,1939.1,1938.4,0.4]
[1617284079091,6.74303,1939.1,1938.4,0.49406894]
[1617284079291,6.74303,1939.1,1938.4,5.41]
[1617284079698,6.74303,1939.1,1938.5,5.01]
[1617284079900,6.74303,1939.1,1938.6,5.01]
[1617284080208,6.74303,1939.1,1938.4,0.4]
[1617284080800,6.74303,1939.1,1938.7,0.39]
[1617284081005,6.69303,1939.1,1938.7,0.39]
[1617284081200,6.69303,1939.1,1938.3,13.03222]
[1617284081399,6.69303,1939.1,1938.5,0.41]
[1617284082620,6.69303,1939.1,1938.6,0.4]
[1617284082820,6.69303,1939.1,1938.7,0.41]
[1617284083220,6.69303,1939.1,1938.5,0.28]
[1617284083421,9.2851,1939.1,1938.4,5.01]
[1617284083624,9.2851,1939.1,1938.5,5.39]
[1617284083823,9.2851,1939.1,1938.5,5.01]
[1617284084025,8.2851,1939.1,1938.4,0.41]
[1617284084222,8.2851,1939.1,1938.6,0.4]
[1617284084756,9.4851,1939.1,1938.3,0.19133027]
[1617284084957,0.53850038,1939.0,1938.2,0.09406894]
[1617284085158,1.2,1938.9,1937.8,0.09406894]
[1617284085358,1.2,1938.6,1937.7,0.39]
[1617284085557,1.2,1938.6,1937.9,0.38]
[1617284085758,14.54677,1938.7,1937.9,0.38]
[1617284085958,13.34677,1938.7,1937.9,0.38]
[1617284086165,10.32766,1938.4,1938.0,0.39]
[1617284086660,10.32766,1938.4,1937.8,0.28]
[1617284086862,10.32766,1938.4,1937.6,3.07653538]
[1617284087062,10.32766,1938.4,1937.9,0.5480509]
[1617284087261,7.74502,1938.4,1937.9,0.5480509]
[1617284087675,7.74502,1938.4,1937.9,0.1580509]
[1617284087975,1.0102,1938.5,1937.9,0.5580509]
[1617284088275,1.0102,1938.5,1938.0,0.806]
[1617284088476,6.09841653,1938.8,1938.3,0.4]
[1617284088875,5.10463472,1938.8,1938.3,5.41]
[1617284089103,5.10463472,1938.8,1938.5,0.4]
[1617284089999,4.10763472,1938.8,1938.5,0.4]
[1617284090500,5.13724596,1938.8,1938.5,0.4]
[1617284090701,4.10763472,1938.8,1938.5,0.4]
[1617284091000,4.10763472,1938.8,1938.3,0.4]
[1617284091306,4.10763472,1938.8,1938.3,8.1422]
[1617284091902,4.10763472,1938.8,1938.3,10.83764686]
[1617284092501,4.10763472,1938.8,1938.5,0.39]
[1617284093117,4.10763472,1938.8,1938.3,7.7422]
[1617284093317,4.10763472,1938.8,1938.3,0.41]
[1617284093318,11.85067472,1938.8,1938.3,0.41]
[1617284093617,11.85067472,1938.8,1938.3,5.01]
[1617284094017,10.85067472,1938.8,1938.3,5.4]
[1617284094217,10.85067472,1938.8,1938.3,0.39]
[1617284094419,10.85067472,1938.8,1938.2,0.11287991]
[1617284095018,10.85067472,1938.8,1938.3,0.38]
[1617284095245,11.09823872,1938.8,1938.3,0.38]
[1617284095744,12.54251477,1938.8,1938.3,0.38]
[1617284096155,12.54251477,1938.8,1938.2,0.11287991]
[1617284096350,12.54251477,1938.8,1938.0,0.4]
[1617284096646,12.54251477,1938.8,1937.9,5.69]
[1617284096846,12.54251477,1938.8,1937.9,0.68]
[1617284097047,12.54251477,1938.8,1937.9,5.69]
[1617284097447,18.75251477,1938.8,1937.9,0.4]
[1617284097647,17.56519872,1938.8,1937.8,0.48406894]
[1617284097868,14.35967,1938.3,1937.8,0.39]
[1617284098972,13.35967,1938.3,1937.8,0.39]
[1617284099272,13.35967,1938.3,1938.0,0.13768613]
[1617284099273,13.22756773,1938.3,1938.0,0.13768613]
[1617284100375,13.22756773,1938.3,1938.0,0.51768613]
[1617284100594,6.09342037,1938.2,1938.0,0.51768613]
[1617284100795,6.09342037,1938.2,1938.0,0.13768613]
[1617284100997,14.36004,1938.3,1938.1,0.4]
[1617284101199,6.6146,1938.3,1938.1,0.4]
[1617284101397,6.6146,1938.3,1938.2,0.41]
[1617284101600,6.6146,1938.3,1938.0,0.13768613]
[1617284101797,6.6146,1938.3,1938.0,2.81679411]
[1617284102299,7.05,1938.2,1938.0,0.13768613]
[1617284102500,14.35973,1938.3,1938.0,0.13768613]
[1617284102699,6.6146,1938.3,1938.0,0.13768613]
[1617284102898,10.32646,1938.6,1938.0,3.19679411]
[1617284103120,10.32646,1938.6,1938.0,0.51768613]
[1617284103625,0.247564,1938.8,1938.5,0.38]
[1617284103825,0.247564,1938.8,1938.5,0.66]
[1617284104127,3.5554675,1939.2,1938.5,0.38]
[1617284104427,3.2861926,1939.2,1938.5,0.38]
[1617284104623,3.2861926,1939.2,1938.5,0.34641259]
[1617284104822,3.2861926,1939.2,1938.4,0.68]
[1617284104823,7.74293,1938.9,1938.4,0.68]
[1617284105023,6.74293,1938.9,1938.5,0.38]
[1617284105432,6.74293,1938.9,1938.1,16.97853029]
[1617284105625,6.74293,1938.9,1938.3,0.4]
[1617284106249,6.74293,1938.9,1938.3,0.715]
[1617284106453,6.74293,1938.9,1938.6,0.41]
[1617284106654,6.09338558,1939.0,1938.6,0.41]
[1617284106851,6.09338558,1939.0,1938.7,0.4]
[1617284107051,6.09338558,1939.0,1938.7,0.68]
[1617284107654,6.09338558,1939.0,1938.8,0.41]
[1617284108255,0.00641819,1939.0,1938.8,0.41]
[1617284108481,0.00641819,1939.0,1938.9,7.6]
[1617284108976,5.14877096,1939.5,1938.9,0.4]
[1617284109183,7.74087,1939.4,1939.1,0.41]
[1617284109581,14.18042748,1939.6,1938.9,5.01]
[1617284109582,6.96e-06,1939.0,1938.9,5.01]
[1617284109886,6.96e-06,1939.0,1938.9,11.8083828]
[1617284110083,6.96e-06,1939.0,1938.9,28.58552944]
[1617284110282,6.96e-06,1939.0,1938.9,35.58552944]
[1617284110482,6.96e-06,1939.0,1938.9,65.58552944]
[1617284110691,6.96e-06,1939.0,1938.9,74.81112973]
[1617284110999,1.00490792,1939.6,1938.9,78.82622973]
[1617284111000,0.95491488,1939.6,1938.9,78.82622973]
[1617284111300,0.95491488,1939.6,1939.5,28.24]
[1617284111601,0.95491488,1939.6,1939.5,54.52270029]
[1617284111905,1.06,1939.9,1939.6,0.95491488]
[1617284112102,1.06,1939.9,1939.8,28.23]
[1617284112300,1.06,1939.9,1939.8,54.50714664]
[1617284112802,0.96,1939.9,1939.8,64.33968693]
[1617284113000,0.96,1939.9,1939.8,75.84494605]
[1617284113301,1.01272449,1940.0,1939.8,75.84494605]
[1617284113503,6.475e-05,1940.1,1940.0,27.85]
[1617284113729,6.475e-05,1940.1,1940.0,50.55486029]
[1617284113929,0.24006475,1940.9,1940.1,27.85]
[1617284114127,0.24006475,1940.9,1940.8,18.9]
[1617284114327,0.24006475,1940.9,1940.8,30.3271]
[1617284114726,0.24006475,1940.9,1940.8,11.4271]
[1617284115229,0.24006475,1940.9,1940.8,10.33754989]
[1617284115632,0.24006475,1940.9,1940.8,3.09044989]
[1617284115927,14.55006475,1940.9,1940.8,0.11044989]
[1617284116251,14.55006475,1940.9,1940.2,5.63375364]
[1617284116252,10.35,1940.8,1940.2,5.63375364]
[1617284116455,10.35,1940.8,1940.2,5.91375364]
[1617284116654,10.35,1940.8,1940.3,0.39]
[1617284116852,0.24006475,1940.9,1940.4,2.96948154]
[1617284117062,0.24006475,1940.9,1940.4,8.37948154]
[1617284117252,0.24006475,1940.9,1940.4,0.75]
[1617284117456,0.39,1940.8,1940.4,0.28]
[1617284117752,0.24006475,1940.9,1940.4,0.28]
[1617284117952,0.24006475,1940.9,1940.1,0.39]
[1617284118153,0.24006475,1940.9,1940.1,8.4043]
[1617284118757,0.24650494,1940.9,1940.1,8.4043]
[1617284119076,0.41,1940.9,1940.2,0.4]
[1617284119276,0.41,1940.9,1940.1,13.0243]
[1617284119277,0.41,1940.8,1940.1,13.0243]
[1617284119478,1.61,1940.8,1940.1,16.2743]
[1617284119681,0.41,1940.8,1940.1,16.2743]
[1617284119877,0.41,1940.8,1940.2,0.41]
[1617284120077,2.2063122,1941.0,1940.5,0.15863798]
[1617284120279,0.4,1940.9,1940.5,0.15863798]
[1617284120480,2.63027892,1940.9,1940.5,0.15863798]
[1617284120679,1.2,1940.8,1940.5,0.15863798]
[1617284121178,22.75,1940.6,1940.5,0.15863798]
[1617284121595,30.75,1940.6,1939.9,0.41]
[1617284121796,10.76745892,1940.5,1939.8,0.58]
[1617284121998,9.43124894,1940.5,1939.8,0.99]
[1617284122396,2.63027892,1940.4,1939.8,0.99]
[1617284122597,0.09406894,1940.3,1939.8,0.99]
[1617284122998,1.37569258,1940.3,1939.8,0.71]
[1617284123200,2.98569258,1940.3,1939.8,0.3]
[1617284123399,1.61,1940.3,1939.8,0.3]
[1617284123598,1.2,1940.3,1939.8,0.69]
[1617284123808,3.96284894,1940.4,1939.8,0.69]
[1617284124119,7.73779,1940.3,1939.8,0.69]
[1617284124518,0.09406894,1940.3,1939.8,0.3]
[1617284125118,0.09406894,1940.3,1940.1,0.11623514]
[1617284125321,0.54328827,1940.5,1940.1,0.11623514]
[1617284125524,0.04921933,1940.5,1940.2,0.41]
[1617284126219,0.04921933,1940.5,1940.1,0.11623514]
[1617284126745,0.04921933,1940.5,1940.2,0.4]
[1617284126946,0.04921933,1940.5,1940.2,8.1091]
[1617284127145,0.04921933,1940.5,1940.4,0.4]
[1617284127545,0.04921933,1940.5,1940.3,2.2484]
[1617284127846,3.74921933,1940.5,1940.3,2.2484]
[1617284128045,2.74921933,1940.5,1940.3,2.2484]
[1617284128246,2.74921933,1940.5,1940.3,1.3045]
[1617284128445,2.74921933,1940.5,1940.1,0.11623514]
[1617284128845,2.74921933,1940.5,1940.2,0.38]
[1617284129246,2.74921933,1940.5,1940.3,0.39]
[1617284129476,2.74921933,1940.5,1940.1,0.11623514]
[1617284129477,2.74921933,1940.5,1940.1,0.49623514]
[1617284129678,2.74921933,1940.5,1940.1,0.11623514]
[1617284129881,1.2,1940.4,1940.1,0.11623514]
[1617284130083,0.41,1940.3,1940.1,0.11623514]
[1617284130680,13.55,1940.2,1940.1,0.11623514]
[1617284131077,14.86114394,1940.2,1940.1,0.11623514]
[1617284131578,14.86114394,1940.2,1939.8,0.3]
[1617284131579,9.6,1940.1,1939.8,0.3]
[1617284132695,1.30684227,1940.1,1939.8,0.69]
[1617284132995,0.30684227,1940.1,1939.8,0.69]
[1617284133196,4.05758796,1940.4,1939.8,0.69]
[1617284133398,0.39,1940.3,1939.8,0.3]
[1617284133601,3.91758796,1940.2,1939.8,0.3]
[1617284133798,7.73841,1940.2,1939.8,0.69]